fUSD/lending_fUSD_20250103
["ID","MTS","AMOUNT","RATE_DAILY","PERIOD"]
[347608053,1735947040357,-500.0,0.00011899,2]
[347608054,1735947040366,-500.21,0.00011899,2]
[347608055,1735947040376,-555.29,0.00011899,2]
[347608056,1735947040385,-500.0,0.00011899,2]
[347608057,1735947040396,-475.02495948,0.00011899,2]
[347608058,1735947040410,-52.32504052,0.00011899,2]
[347608059,1735947040419,-500.0,0.00011899,2]
[347608061,1735947040428,-1096.43,0.00011899,2]
[347608063,1735947040439,-506.28,0.00011899,2]
[347608065,1735947040448,-500.0,0.00011899,2]
[347608067,1735947040458,-500.0,0.00011899,2]
[347608069,1735947040467,-500.0,0.00011899,2]
[347608071,1735947040476,-500.0,0.00011899,2]
[347608073,1735947040486,-500.0,0.00011899,2]
[347608074,1735947040495,-617.71,0.00011899,2]
[347608075,1735947040504,-500.0,0.00011899,2]
[347608076,1735947040513,-500.0,0.00011899,2]
[347608077,1735947040522,-500.0,0.00011899,2]
[347608078,1735947040531,-500.0,0.00011899,2]
[347608079,1735947040541,-500.0,0.00011899,2]
[347608080,1735947040550,-500.0,0.00011899,2]
[347608081,1735947040559,-500.0,0.00011899,2]
[347608082,1735947040569,-551.03,0.00011899,2]
[347608083,1735947040578,-500.0,0.00011899,2]
[347608084,1735947040588,-500.0,0.00011899,2]
[347608085,1735947040597,-500.0,0.00011899,2]
[347608086,1735947040606,-500.0,0.00011899,2]
[347608087,1735947040615,-500.0,0.00011899,2]
[347608088,1735947040624,-500.0,0.00011899,2]
[347608089,1735947040634,-500.0,0.00011899,2]
[347608090,1735947040643,-500.0,0.00011899,2]
[347608091,1735947040653,-315.849569,0.00011899,2]
[347608092,1735947040663,-500.0,0.00011899,2]
[347608093,1735947040672,-500.0,0.00011899,2]
[347608094,1735947040681,-500.0,0.00011899,2]
[347608095,1735947040690,-500.0,0.00011899,2]
[347608096,1735947040700,-257.315287,0.00011899,2]
[347608097,1735947040710,-500.0,0.00011899,2]
[347608098,1735947040719,-500.0,0.00011899,2]
[347608099,1735947040728,-3344.25,0.00011899,2]
[347608100,1735947040737,-609.16,0.00011899,2]
[347608101,1735947040746,-548.95,0.00011899,2]
[347608102,1735947040755,-500.0,0.00011899,2]
[347608103,1735947040764,-500.0,0.00011899,2]
[347608104,1735947040774,-624.43,0.00011899,2]
[347608105,1735947040783,-499.29342186,0.00011899,2]
[347608106,1735947040795,-0.70657814,0.00011899,2]
[347608107,1735947040804,-500.0,0.00011899,2]
[347608108,1735947040814,-164.61026186,0.00011899,2]
[347608109,1735947040831,-335.38973814,0.00011899,2]
[347608110,1735947040840,-500.0,0.00011899,2]
[347608111,1735947040849,-66.26026187,0.00011899,2]
[347608112,1735947040922,-433.73973813,0.00011899,2]
[347608113,1735947040932,-500.0,0.00011899,2]
[347608114,1735947040941,-266.05880853,0.00011899,2]
[347608115,1735947040952,-233.94119147,0.00011899,2]
[347608116,1735947040962,-500.0,0.00011899,2]
[347608117,1735947040971,-74.0039583,0.00011899,2]
[347608118,1735947040987,-425.9960417,0.00011899,2]
[347608119,1735947040995,-151.46601768,0.00011899,2]
[347608136,1735947043197,-92.42963053,0.00011488,2]
[347608137,1735947043209,-178.04202724,0.00011488,2]
[347608138,1735947043218,-118.1704022,0.00011798,2]
[347608139,1735947043280,-469.0795978,0.00011798,2]
[347608140,1735947043289,-357.55649936,0.00011898,2]
[347608141,1735947043300,-142.44350064,0.00011898,2]
[347608142,1735947043311,-153.69093271,0.00011899,2]
[347608143,1735947043329,-500.0,0.00011798,2]
[347608144,1735947043338,-221.18304961,0.00011899,2]
[347608145,1735947043348,-500.0,0.00011899,2]
[347608146,1735947043358,-500.0,0.00011899,2]
[347608147,1735947043367,-500.0,0.00011899,2]
[347608148,1735947043376,-500.0,0.00011899,2]
[347608149,1735947043386,-500.0,0.00011899,2]
[347608150,1735947043396,-2246.72,0.00011899,2]
[347608151,1735947043406,-414.29336552,0.00011899,2]
[347608152,1735947043421,-85.70663448,0.00011899,2]
[347608153,1735947043433,-564.26,0.00011899,2]
[347608154,1735947043443,-580.15119052,0.00011899,2]
[347608155,1735947043473,-500.0,0.00011798,2]
[347608156,1735947043483,-220.11880948,0.00011899,2]
[347608157,1735947043492,-500.0,0.00011899,2]
[347608158,1735947043501,-500.0,0.00011899,2]
[347608159,1735947043511,-500.0,0.00011899,2]
[347608160,1735947043520,-972.95,0.00011899,2]
[347608161,1735947043530,-500.0,0.00011899,2]
[347608162,1735947043539,-500.0,0.00011899,2]
[347608163,1735947043548,-500.0,0.00011899,2]
[347608164,1735947043558,-500.0,0.00011899,2]
[347608165,1735947043568,-500.0,0.00011899,2]
[347608166,1735947043577,-500.0,0.00011899,2]
[347608167,1735947043586,-3214.82,0.00011899,2]
[347608168,1735947043595,-500.0,0.00011899,2]
[347608169,1735947043605,-1396.62,0.00011899,2]
[347608170,1735947043614,-500.0,0.00011899,2]
[347608171,1735947043623,-500.0,0.00011899,2]
[347608172,1735947043633,-267.59231105,0.00011899,2]
[347608173,1735947043643,-575.3,0.00011899,2]
[347608174,1735947043652,-500.0,0.00011899,2]
[347608175,1735947043662,-500.0,0.00011899,2]
[347608176,1735947043672,-500.0,0.00011899,2]
[347608177,1735947043681,-500.0,0.00011899,2]
[347608178,1735947043691,-500.0,0.00011899,2]
[347608179,1735947043700,-500.0,0.00011899,2]
[347608180,1735947043709,-2124.56,0.00011899,2]
[347608181,1735947043719,-500.0,0.00011899,2]
[347608182,1735947043728,-500.0,0.00011899,2]
[347608183,1735947043738,-500.0,0.00011899,2]
[347608184,1735947043747,-500.0,0.00011899,2]
[347608185,1735947043755,-554.46,0.00011899,2]
[347608186,1735947043764,-500.0,0.00011899,2]
[347608187,1735947043773,-503.89,0.00011899,2]
[347608188,1735947043782,-500.0,0.00011899,2]
[347608189,1735947043791,-500.0,0.00011899,2]
[347608190,1735947043800,-2621.89,0.00011899,2]
[347608191,1735947043809,-500.0,0.00011899,2]
[347608192,1735947043818,-500.0,0.00011899,2]
[347608193,1735947043827,-500.0,0.00011899,2]
[347608194,1735947043836,-516.36,0.00011899,2]
[347608195,1735947043845,-500.0,0.00011899,2]
[347608196,1735947043855,-294.78594314,0.00011899,2]
[347608197,1735947043864,-664.84,0.00011899,2]
[347608198,1735947043874,-500.0,0.00011899,2]
[347608199,1735947043883,-500.0,0.00011899,2]
[347608200,1735947043892,-500.0,0.00011899,2]
[347608201,1735947043901,-500.0,0.00011899,2]
[347608202,1735947043911,-500.0,0.00011899,2]
[347608203,1735947043920,-500.0,0.00011899,2]
[347608204,1735947043930,-1712.0,0.000119,2]
[347608205,1735947043939,-767.19,0.00011983,2]
[347608206,1735947043948,-1450.49,0.00011983,2]
[347608207,1735947043957,-1554.11,0.00011983,2]
[347608208,1735947043967,-1012.27,0.00011983,2]
[347608209,1735947043976,-500.0,0.00011984,2]
[347608210,1735947043985,-500.0,0.00011984,2]
[347608211,1735947043995,-500.0,0.00011984,2]
[347608212,1735947044004,-601.15,0.00011984,2]
[347608213,1735947044014,-541.32,0.00011984,2]
[347608214,1735947044023,-500.0,0.00011984,2]
[347608215,1735947044033,-500.0,0.00011984,2]
[347608216,1735947044042,-500.0,0.00011984,2]
[347608217,1735947044051,-500.0,0.00011984,2]
[347608218,1735947044061,-500.0,0.00011984,2]
[347608219,1735947044070,-500.0,0.00011984,2]
[347608220,1735947044080,-500.0,0.00011984,2]
[347608221,1735947044089,-965.57,0.00011984,2]
[347608222,1735947044099,-589.92,0.00011984,2]
[347608223,1735947044108,-500.0,0.00011984,2]
[347608224,1735947044119,-700.33,0.00011984,2]
[347608225,1735947044128,-500.0,0.00011984,2]
[347608226,1735947044137,-506.76,0.00011984,2]
[347608227,1735947044147,-915.71,0.00011984,2]
[347608228,1735947044156,-500.0,0.00011984,2]
[347608229,1735947044170,-500.0,0.00011984,2]
[347608230,1735947044180,-500.0,0.00011984,2]
[347608231,1735947044190,-500.0,0.00011984,2]
[347608232,1735947044200,-500.0,0.00011984,2]
[347608233,1735947044209,-500.0,0.00011984,2]
[347608234,1735947044218,-500.0,0.00011984,2]
[347608235,1735947044228,-822.17,0.00011984,2]
[347608236,1735947044237,-500.0,0.00011984,2]
[347608237,1735947044247,-500.0,0.00011984,2]
[347608238,1735947044256,-500.0,0.00011984,2]
[347608239,1735947044266,-500.0,0.00011984,2]
[347608240,1735947044275,-607.07,0.00011984,2]
[347608241,1735947044284,-500.0,0.00011984,2]
[347608242,1735947044294,-559.72,0.00011984,2]
[347608243,1735947044303,-500.0,0.00011984,2]
[347608244,1735947044312,-500.0,0.00011984,2]
[347608245,1735947044321,-500.0,0.00011984,2]
[347608247,1735947044331,-500.0,0.00011984,2]
[347608249,1735947044341,-707.95,0.00011984,2]
[347608250,1735947044351,-632.54,0.00011984,2]
[347608251,1735947044360,-575.76,0.00011984,2]
[347608252,1735947044370,-500.0,0.00011984,2]
[347608255,1735947044553,-500.0,0.00011984,2]
[347608256,1735947044563,-500.0,0.00011984,2]
[347608257,1735947044573,-641.85,0.00011984,2]
[347608258,1735947044582,-500.0,0.00011984,2]
[347608259,1735947044591,-617.16,0.00011984,2]
[347608260,1735947044600,-500.0,0.00011984,2]
[347608261,1735947044610,-557.92,0.00011984,2]
[347608262,1735947044619,-500.0,0.00011984,2]
[347608263,1735947044629,-500.0,0.00011984,2]
[347608264,1735947044638,-500.0,0.00011984,2]
[347608265,1735947044647,-592.33,0.00011984,2]
[347608266,1735947044656,-500.0,0.00011984,2]
[347608267,1735947044670,-500.0,0.00011984,2]
[347608268,1735947044679,-500.0,0.00011984,2]
[347608269,1735947044688,-500.0,0.00011984,2]
[347608270,1735947044698,-500.0,0.00011984,2]
[347608271,1735947044706,-556.38,0.00011984,2]
[347608272,1735947044716,-500.0,0.00011984,2]
[347608273,1735947044725,-500.0,0.00011984,2]
[347608274,1735947044736,-500.0,0.00011984,2]
[347608275,1735947044745,-510.34,0.00011984,2]
[347608276,1735947044754,-1101.84,0.00011984,2]
[347608277,1735947044765,-783.26,0.00011984,2]
[347608278,1735947044775,-1013.15,0.00011984,2]
[347608279,1735947044786,-764.69,0.00011984,2]
[347608280,1735947044795,-1005.62,0.00011984,2]
[347608281,1735947044805,-500.0,0.00011984,2]
[347608282,1735947044814,-500.0,0.00011984,2]
[347608283,1735947044824,-500.0,0.00011984,2]
[347608284,1735947044833,-500.0,0.00011984,2]
[347608285,1735947044842,-500.0,0.00011984,2]
[347608286,1735947044851,-500.0,0.00011984,2]
[347608287,1735947044861,-500.0,0.00011984,2]
[347608288,1735947044871,-500.0,0.00011984,2]
[347608289,1735947044881,-500.0,0.00011984,2]
[347608290,1735947044890,-1364.6,0.00011984,2]
[347608291,1735947044900,-500.0,0.00011984,2]
[347608292,1735947044910,-739.41,0.00011984,2]
[347608293,1735947044919,-500.0,0.00011984,2]
[347608294,1735947044929,-1452.03,0.00011984,2]
[347608295,1735947044938,-500.0,0.00011984,2]
[347608296,1735947044948,-500.0,0.00011984,2]
[347608297,1735947044958,-3638.77,0.00011984,2]
[347608298,1735947044968,-500.0,0.00011984,2]
[347608299,1735947044979,-743.23,0.00011984,2]
[347608300,1735947044988,-500.0,0.00011984,2]
[347608301,1735947044997,-500.0,0.00011984,2]
[347608302,1735947045007,-500.0,0.00011984,2]
[347608303,1735947045017,-1446.33,0.00011984,2]
[347608304,1735947045027,-574.61,0.00011984,2]
[347608305,1735947045036,-663.6,0.00011984,2]
[347608306,1735947045046,-500.0,0.00011984,2]
[347608307,1735947045055,-734.71,0.00011984,2]
[347608308,1735947045065,-627.54,0.00011984,2]
[347608309,1735947045074,-500.0,0.00011984,2]
[347608310,1735947045083,-500.0,0.00011984,2]
[347608311,1735947045092,-500.0,0.00011984,2]
[347608312,1735947045101,-3729.42,0.00011984,2]
[347608313,1735947045110,-808.6,0.00011984,2]
[347608314,1735947045119,-518.86,0.00011984,2]
[347608315,1735947045128,-1833.8,0.00011984,2]
[347608316,1735947045138,-500.0,0.00011984,2]
[347608317,1735947045147,-505.39,0.00011984,2]
[347608318,1735947045156,-566.14,0.00011984,2]
[347608319,1735947045167,-4562.58,0.00011985,2]
[347608320,1735947045177,-500.0,0.00011985,2]
[347608321,1735947045187,-663.05,0.00011985,2]
[347608322,1735947045196,-1348.36,0.00011985,2]
[347608323,1735947045205,-1086.96,0.00011985,2]
[347608324,1735947045215,-1443.18,0.00011985,2]
[347608325,1735947045224,-1000.0,0.00011985,2]
[347608326,1735947045233,-1093.52,0.00011985,2]
[347608327,1735947045243,-937.56,0.00011985,2]
[347608328,1735947045252,-2147.12,0.00011985,2]
[347608329,1735947045262,-1881.61,0.00011985,2]
[347608330,1735947045272,-19038.3816,0.00011987,2]
[347608331,1735947045282,-256.52765012,0.00011999,2]
[347608332,1735947045294,-553.14,0.00011999,2]
[347608333,1735947045305,-500.0,0.00011999,2]
[347608334,1735947045314,-500.0,0.00011999,2]
[347608335,1735947045324,-500.0,0.00011999,2]
[347608336,1735947045334,-500.0,0.00011999,2]
[347608337,1735947045345,-560.98,0.00011999,2]
[347608338,1735947045354,-500.0,0.00011999,2]
[347608339,1735947045363,-500.0,0.00011999,2]
[347608340,1735947045373,-500.0,0.00011999,2]
[347608341,1735947045382,-500.0,0.00011999,2]
[347608342,1735947045392,-500.0,0.00011999,2]
[347608343,1735947045406,-500.0,0.00011999,2]
[347608344,1735947045417,-500.0,0.00011999,2]
[347608345,1735947045427,-500.0,0.00011999,2]
[347608346,1735947045436,-500.0,0.00011999,2]
[347608347,1735947045447,-293.28360574,0.00011999,2]
[347608348,1735947045456,-500.0,0.00011999,2]
[347608349,1735947045465,-500.0,0.00011999,2]
[347608350,1735947045475,-500.0,0.00011999,2]
[347608351,1735947045486,-500.0,0.00011999,2]
[347608352,1735947045497,-500.0,0.00011999,2]
[347608353,1735947045507,-448.65722129,0.00011999,2]
[347608354,1735947045516,-500.0,0.00011999,2]
[347608355,1735947045526,-500.0,0.00011999,2]
[347608356,1735947045536,-500.0,0.00011999,2]
[347608357,1735947045546,-500.0,0.00011999,2]
[347608358,1735947045556,-500.0,0.00011999,2]
[347608359,1735947045565,-500.0,0.00011999,2]
[347608360,1735947045576,-500.0,0.00011999,2]
[347608361,1735947045585,-500.0,0.00011999,2]
[347608362,1735947045595,-500.0,0.00011999,2]
[347608363,1735947045605,-500.0,0.00011999,2]
[347608364,1735947045614,-500.0,0.00011999,2]
[347608365,1735947045623,-500.0,0.00011999,2]
[347608366,1735947045632,-605.31,0.00011999,2]
[347608367,1735947045641,-500.0,0.00011999,2]
[347608368,1735947045650,-500.0,0.00011999,2]
[347608369,1735947045659,-518.44,0.00011999,2]
[347608370,1735947045668,-201.17,0.00012042,2]
[347608371,1735947045677,-500.0,0.00012072,2]
[347608372,1735947045687,-500.0,0.00012072,2]
[347608373,1735947045696,-500.0,0.00012072,2]
[347608374,1735947045705,-500.0,0.00012072,2]
[347608375,1735947045714,-500.0,0.00012072,2]
[347608376,1735947045723,-500.0,0.00012072,2]
[347608377,1735947045732,-500.0,0.00012072,2]
[347608378,1735947045742,-500.0,0.00012072,2]
[347608379,1735947045751,-258.47,0.00012072,2]
[347608380,1735947045760,-500.0,0.00012072,2]
[347608381,1735947045770,-2283.76,0.00012099,2]
[347608382,1735947045780,-166.881,0.00012099,2]
[347608383,1735947045789,-487.38735232,0.000121,2]
[347608384,1735947045798,-1289.89,0.00012172,2]
[347608385,1735947045808,-500.0,0.00012172,2]
[347608386,1735947045817,-1029.46,0.00012172,2]
[347608387,1735947045826,-4084.87,0.00012172,2]
[347608388,1735947045836,-500.0,0.00012172,2]
[347608389,1735947045845,-500.0,0.00012172,2]
[347608390,1735947045854,-669.19,0.00012172,2]
[347608391,1735947045864,-1173.61,0.00012172,2]
[347608392,1735947045873,-500.0,0.00012172,2]
[347608393,1735947045882,-1382.5,0.00012172,2]
[347608394,1735947045892,-1209.38,0.00012172,2]
[347608395,1735947045902,-2429.39,0.00012172,2]
[347608396,1735947045911,-527.67,0.00012172,2]
[347608397,1735947045920,-1188.5,0.00012172,2]
[347608398,1735947045930,-500.0,0.00012172,2]
[347608399,1735947045939,-500.0,0.00012172,2]
[347608400,1735947045949,-1361.78,0.00012172,2]
[347608401,1735947045958,-500.0,0.00012172,2]
[347608402,1735947045967,-800.02,0.00012172,2]
[347608403,1735947045976,-500.0,0.00012172,2]
[347608404,1735947045986,-802.87,0.00012172,2]
[347608405,1735947045995,-260.61,0.00012172,2]
[347608406,1735947046004,-852.18,0.00012172,2]
[347608407,1735947046014,-500.0,0.00012172,2]
[347608408,1735947046023,-500.0,0.00012173,2]
[347608409,1735947046032,-500.0,0.00012173,2]
[347608410,1735947046042,-500.0,0.00012173,2]
[347608411,1735947046051,-183.13,0.00012173,2]
[347608412,1735947046061,-500.0,0.00012173,2]
[347608413,1735947046070,-500.0,0.00012173,2]
[347608414,1735947046079,-500.0,0.00012173,2]
[347608415,1735947046088,-500.0,0.00012173,2]
[347608416,1735947046098,-294.75,0.00012173,2]
[347608417,1735947046107,-500.0,0.00012173,2]
[347608418,1735947046116,-500.0,0.00012173,2]
[347608419,1735947046125,-500.0,0.00012173,2]
[347608420,1735947046134,-763.36,0.00012173,2]
[347608421,1735947046143,-500.0,0.00012173,2]
[347608422,1735947046153,-602.88,0.00012173,2]
[347608423,1735947046164,-500.0,0.00012173,2]
[347608424,1735947046173,-518.18,0.00012173,2]
[347608425,1735947046182,-500.0,0.00012173,2]
[347608426,1735947046192,-500.0,0.00012173,2]
[347608427,1735947046201,-500.21,0.00012173,2]
[347608428,1735947046210,-500.0,0.00012173,2]
[347608429,1735947046220,-1096.43,0.00012173,2]
[347608430,1735947046229,-506.28,0.00012173,2]
[347608431,1735947046239,-500.0,0.00012173,2]
[347608432,1735947046249,-500.0,0.00012173,2]
[347608433,1735947046259,-500.0,0.00012173,2]
[347608434,1735947046269,-500.0,0.00012173,2]
[347608435,1735947046279,-297.16,0.00012173,2]
[347608436,1735947046289,-227.58,0.00012173,2]
[347608437,1735947046299,-617.71,0.00012173,2]
[347608438,1735947046310,-500.0,0.00012173,2]
[347608439,1735947046320,-500.0,0.00012173,2]
[347608440,1735947046329,-500.0,0.00012173,2]
[347608441,1735947046339,-522.33,0.00012173,2]
[347608442,1735947046349,-500.0,0.00012173,2]
[347608443,1735947046359,-500.0,0.00012173,2]
[347608444,1735947046370,-551.03,0.00012173,2]
[347608445,1735947046382,-500.0,0.00012173,2]
[347608446,1735947046391,-500.0,0.00012173,2]
[347608447,1735947046403,-500.0,0.00012173,2]
[347608448,1735947046417,-500.0,0.00012173,2]
[347608449,1735947046427,-315.849569,0.00012173,2]
[347608450,1735947046437,-500.0,0.00012173,2]
[347608451,1735947046449,-500.0,0.00012173,2]
[347608452,1735947046459,-500.0,0.00012173,2]
[347608453,1735947046470,-500.0,0.00012173,2]
[347608454,1735947046482,-257.315287,0.00012173,2]
[347608455,1735947046491,-500.0,0.00012173,2]
[347608456,1735947046500,-500.0,0.00012173,2]
[347608457,1735947046509,-3344.25,0.00012173,2]
[347608458,1735947046518,-609.16,0.00012173,2]
[347608459,1735947046528,-548.95,0.00012173,2]
[347608460,1735947046537,-557.01,0.00012173,2]
[347608461,1735947046547,-500.0,0.00012173,2]
[347608462,1735947046556,-624.43,0.00012173,2]
[347608463,1735947046565,-500.0,0.00012173,2]
[347608464,1735947046574,-500.0,0.00012173,2]
[347608465,1735947046584,-561.87,0.00012173,2]
[347608466,1735947046593,-500.0,0.00012173,2]
[347608467,1735947046602,-500.0,0.00012173,2]
[347608468,1735947046612,-500.0,0.00012173,2]
[347608469,1735947046621,-500.0,0.00012173,2]
[347608470,1735947046631,-500.0,0.00012173,2]
[347608471,1735947046640,-514.88649007,0.00012173,2]
[347608472,1735947046650,-526.34,0.00012173,2]
[347608473,1735947046660,-500.0,0.00012173,2]
[347608474,1735947046670,-500.0,0.00012173,2]
[347608475,1735947046679,-500.0,0.00012173,2]
[347608476,1735947046689,-500.0,0.00012173,2]
[347608477,1735947046698,-2246.72,0.00012173,2]
[347608478,1735947046707,-564.26,0.00012173,2]
[347608479,1735947046717,-800.27,0.00012173,2]
[347608480,1735947046726,-500.0,0.00012173,2]
[347608481,1735947046736,-972.95,0.00012173,2]
[347608482,1735947046745,-500.0,0.00012173,2]
[347608483,1735947046754,-500.0,0.00012173,2]
[347608484,1735947046763,-500.0,0.00012173,2]
[347608485,1735947046773,-500.0,0.00012173,2]
[347608486,1735947046782,-500.0,0.00012173,2]
[347608487,1735947046791,-3214.82,0.00012173,2]
[347608488,1735947046801,-500.0,0.00012173,2]
[347608489,1735947046810,-1396.62,0.00012173,2]
[347608490,1735947046819,-500.0,0.00012173,2]
[347608491,1735947046828,-500.0,0.00012173,2]
[347608492,1735947046838,-575.3,0.00012173,2]
[347608493,1735947046847,-500.0,0.00012173,2]
[347608494,1735947046857,-500.0,0.00012173,2]
[347608495,1735947046866,-500.0,0.00012173,2]
[347608496,1735947046875,-500.0,0.00012173,2]
[347608497,1735947046885,-500.0,0.00012173,2]
[347608498,1735947046894,-500.0,0.00012173,2]
[347608499,1735947046903,-2124.56,0.00012173,2]
[347608500,1735947046914,-500.0,0.00012173,2]
[347608501,1735947046924,-500.0,0.00012173,2]
[347608502,1735947046933,-500.0,0.00012173,2]
[347608503,1735947046942,-554.46,0.00012173,2]
[347608504,1735947046951,-500.0,0.00012173,2]
[347608505,1735947046960,-503.89,0.00012173,2]
[347608506,1735947046969,-500.0,0.00012173,2]
[347608507,1735947046978,-500.0,0.00012173,2]
[347608508,1735947046988,-2621.89,0.00012173,2]
[347608509,1735947046997,-500.0,0.00012173,2]
[347608510,1735947047006,-500.0,0.00012173,2]
[347608511,1735947047015,-500.0,0.00012173,2]
[347608512,1735947047025,-516.36,0.00012173,2]
[347608513,1735947047034,-500.0,0.00012173,2]
[347608514,1735947047043,-664.84,0.00012173,2]
[347608515,1735947047052,-500.0,0.00012173,2]
[347608516,1735947047061,-500.0,0.00012173,2]
[347608517,1735947047071,-500.0,0.00012173,2]
[347608518,1735947047080,-3000.0,0.0001218,2]
[347608519,1735947047090,-394.076,0.00012196,2]
[347608520,1735947047099,-151.0,0.00012196,2]
[347608521,1735947047108,-190.91180495,0.000122,2]
[347608522,1735947047117,-767.19,0.00012257,2]
[347608523,1735947047127,-1450.49,0.00012257,2]
[347608524,1735947047136,-1554.11,0.00012257,2]
[347608525,1735947047147,-1012.27,0.00012257,2]
[347608526,1735947047156,-500.0,0.00012258,2]
[347608527,1735947047165,-500.0,0.00012258,2]
[347608528,1735947047174,-500.0,0.00012258,2]
[347608529,1735947047184,-541.32,0.00012258,2]
[347608530,1735947047193,-500.0,0.00012258,2]
[347608531,1735947047202,-500.0,0.00012258,2]
[347608532,1735947047211,-310.05,0.00012258,2]
[347608533,1735947047221,-500.0,0.00012258,2]
[347608534,1735947047230,-500.0,0.00012258,2]
[347608535,1735947047239,-500.0,0.00012258,2]
[347608536,1735947047248,-965.57,0.00012258,2]
[347608537,1735947047257,-589.92,0.00012258,2]
[347608538,1735947047267,-500.0,0.00012258,2]
[347608539,1735947047276,-700.33,0.00012258,2]
[347608540,1735947047286,-500.0,0.00012258,2]
[347608541,1735947047295,-506.76,0.00012258,2]
[347608542,1735947047304,-915.71,0.00012258,2]
[347608543,1735947047315,-150.83,0.00012258,2]
[347608544,1735947047325,-500.0,0.00012258,2]
[347608545,1735947047334,-500.0,0.00012258,2]
[347608546,1735947047344,-500.0,0.00012258,2]
[347608547,1735947047353,-500.0,0.00012258,2]
[347608548,1735947047362,-500.0,0.00012258,2]
[347608549,1735947047371,-822.17,0.00012258,2]
[347608550,1735947047381,-500.0,0.00012258,2]
[347608551,1735947047391,-500.0,0.00012258,2]
[347608552,1735947047404,-500.0,0.00012258,2]
[347608553,1735947047414,-484.59,0.00012258,2]
[347608554,1735947047424,-607.07,0.00012258,2]
[347608555,1735947047434,-559.72,0.00012258,2]
[347608556,1735947047443,-500.0,0.00012258,2]
[347608557,1735947047452,-500.0,0.00012258,2]
[347608558,1735947047462,-500.0,0.00012258,2]
[347608559,1735947047471,-500.0,0.00012258,2]
[347608560,1735947047482,-707.95,0.00012258,2]
[347608561,1735947047491,-632.54,0.00012258,2]
[347608562,1735947047502,-500.0,0.00012258,2]
[347608563,1735947047511,-500.0,0.00012258,2]
[347608564,1735947047520,-500.0,0.00012258,2]
[347608565,1735947047660,-641.85,0.00012258,2]
[347608566,1735947047693,-500.0,0.00012258,2]
[347608567,1735947047702,-617.16,0.00012258,2]
[347608568,1735947047711,-557.92,0.00012258,2]
[347608569,1735947047721,-500.0,0.00012258,2]
[347608570,1735947047730,-397.83926213,0.00012258,2]
[347608571,1735947047740,-287.0,0.00012258,2]
[347608572,1735947047750,-500.0,0.00012258,2]
[347608573,1735947047759,-500.0,0.00012258,2]
[347608574,1735947047769,-500.0,0.00012258,2]
[347608575,1735947047779,-500.0,0.00012258,2]
[347608576,1735947047787,-500.0,0.00012258,2]
[347608577,1735947047796,-500.0,0.00012258,2]
[347608578,1735947047805,-510.34,0.00012258,2]
[347608579,1735947047815,-1101.84,0.00012258,2]